bitfinex/quotes_SOLUSD_20230401
["timestamp","ask_amount","ask_price","bid_price","bid_amount"]
[1680309760018,10.0,21.135,21.127,10.0]
[1680309760617,10.0,21.135,21.126,36.60673707]
[1680309760931,17.0,21.134,21.126,36.60673707]
[1680309761924,10.0,21.135,21.126,36.60673707]
[1680309763230,17.0,21.134,21.126,36.60673707]
[1680309763426,20.0,21.133,21.126,36.60673707]
[1680309763616,10.0,21.131,21.126,36.60673707]
[1680309763810,37.0,21.13,21.126,36.60673707]
[1680309764423,20.0,21.13,21.126,36.60673707]
[1680309764621,20.0,21.134,21.126,36.60673707]
[1680309764825,17.0,21.133,21.126,36.60673707]
[1680309765023,20.0,21.132,21.126,36.60673707]
[1680309765223,20.0,21.134,21.126,36.60673707]
[1680309765815,17.0,21.133,21.126,36.60673707]
[1680309766015,30.0,21.132,21.126,36.60673707]
[1680309766211,17.0,21.131,21.126,36.60673707]
[1680309766410,20.0,21.13,21.126,36.60673707]
[1680309766622,17.0,21.129,21.126,36.60673707]
[1680309766833,20.0,21.13,21.126,36.60673707]
[1680309767132,17.0,21.129,21.126,36.60673707]
[1680309767320,17.0,21.13,21.126,36.60673707]
[1680309768232,10.0,21.129,21.126,36.60673707]
[1680309768632,10.0,21.129,21.124,18.928514]
[1680309768936,10.0,21.127,21.124,18.928514]
[1680309769325,17.0,21.126,21.124,18.928514]
[1680309771245,10.0,21.13,21.124,18.928514]
[1680309771539,17.0,21.125,21.121,31.19399102]
[1680309775239,10.0,21.124,21.098,119.09941514]
[1680309775441,10.0,21.122,21.106,31.64312237]
[1680309775746,10.0,21.122,21.104,31.64612115]
[1680309775938,37.0,21.121,21.104,31.64612115]
[1680309776130,10.0,21.12,21.105,10.0]
[1680309776738,17.0,21.119,21.104,31.64612115]
[1680309777129,10.0,21.118,21.104,31.64612115]
[1680309777331,10.0,21.116,21.104,31.64612115]
[1680309777539,17.0,21.115,21.104,31.64612115]
[1680309777735,10.0,21.114,21.104,31.64612115]
[1680309777937,17.0,21.113,21.104,31.64612115]
[1680309780055,20.0,21.112,21.104,31.64612115]
[1680309780230,17.0,21.111,21.104,31.64612115]
[1680309780431,10.0,21.109,21.104,31.64612115]
[1680309780635,17.0,21.108,21.104,31.64612115]
[1680309781031,20.0,21.11,21.104,31.64612115]
[1680309781236,20.0,21.111,21.104,31.64612115]
[1680309782027,20.0,21.113,21.104,31.64612115]
[1680309782443,20.0,21.113,21.104,51.64612115]
[1680309782847,17.0,21.112,21.104,51.64612115]
[1680309783347,10.0,21.111,21.104,51.64612115]
[1680309783549,17.0,21.11,21.104,51.64612115]
[1680309786338,20.0,21.111,21.104,51.64612115]
[1680309786645,10.0,21.112,21.104,51.64612115]
[1680309786847,17.0,21.111,21.104,51.64612115]
[1680309787151,10.0,21.11,21.104,51.64612115]
[1680309787348,10.0,21.108,21.104,51.64612115]
[1680309787947,17.0,21.109,21.104,51.64612115]
[1680309788961,20.0,21.111,21.104,51.64612115]
[1680309789140,20.0,21.113,21.104,51.64612115]
[1680309789333,20.0,21.113,21.105,10.0]
[1680309789537,20.0,21.115,21.105,10.0]
[1680309791953,20.0,21.115,21.099,10.0]
[1680309792156,10.0,21.114,21.099,8.0]
[1680309792366,20.0,21.113,21.099,8.0]
[1680309792543,23.668,21.126,21.1,17.0]
[1680309792748,23.668,21.126,21.1,24.07101808]
[1680309792965,14.14970554,21.128,21.101,85.21532886]
[1680309793138,134.6768741,21.13,21.103,10.0]
[1680309793458,134.6768741,21.13,21.105,23.69]
[1680309793459,10.0,21.129,21.105,23.69]
[1680309793660,10.0,21.129,21.106,20.0]
[1680309793866,10.0,21.129,21.108,10.0]
[1680309794158,10.0,21.135,21.11,10.0]
[1680309794742,23.657,21.136,21.111,34.44931078]
[1680309794945,20.0,21.135,21.111,34.44931078]
[1680309795144,20.0,21.136,21.114,10.0]
[1680309795343,20.0,21.137,21.115,17.0]
[1680309795539,10.0,21.136,21.116,10.0]
[1680309795744,20.0,21.135,21.117,17.0]
[1680309796154,20.0,21.135,21.118,10.0]
[1680309796366,10.0,21.138,21.118,10.0]
[1680309796665,23.647,21.144,21.118,10.0]
[1680309796666,10.0,21.143,21.12,10.0]
[1680309796847,10.0,21.143,21.121,17.0]
[1680309797368,10.0,21.143,21.122,10.0]
[1680309797572,10.0,21.143,21.123,17.0]
[1680309797853,20.0,21.142,21.123,17.0]
[1680309798056,108.3033,21.147,21.123,17.0]
[1680309798256,23.642,21.149,21.125,10.0]
[1680309798455,10.0,21.152,21.126,37.0]
[1680309798643,10.0,21.152,21.127,10.0]
[1680309798961,10.0,21.152,21.128,17.0]
[1680309799152,24.32283651,21.152,21.129,10.0]
[1680309799747,10.0,21.152,21.129,10.0]
[1680309799949,10.0,21.152,21.13,17.0]
[1680309800150,10.0,21.152,21.131,10.0]
[1680309800350,20.0,21.151,21.132,17.0]
[1680309800556,10.0,21.15,21.133,10.0]
[1680309801263,20.0,21.151,21.133,10.0]
[1680309801459,20.0,21.151,21.134,17.0]
[1680309801650,20.0,21.152,21.135,10.0]
[1680309801849,20.0,21.152,21.136,17.0]
[1680309802058,10.0,21.151,21.137,10.0]
[1680309806553,20.0,21.152,21.137,10.0]
[1680309807452,20.0,21.153,21.137,10.0]
[1680309807656,20.0,21.156,21.138,17.0]
[1680309807963,10.0,21.155,21.139,10.0]
[1680309808164,20.0,21.154,21.139,10.0]
[1680309808362,20.0,21.156,21.14,17.0]
[1680309808665,10.0,21.158,21.141,10.0]
[1680309808864,10.0,21.159,21.141,10.0]
[1680309809055,10.0,21.159,21.143,10.0]
[1680309809452,10.0,21.159,21.145,10.0]
[1680309812468,10.0,21.162,21.145,10.0]
[1680309812767,20.0,21.161,21.146,17.0]
[1680309814652,18.929087,21.157,21.146,17.0]
[1680309816867,18.929087,21.157,21.147,10.0]
[1680309820979,18.929087,21.157,21.146,17.0]
[1680309821374,18.929087,21.157,21.145,10.0]
[1680309821569,18.929087,21.157,21.143,10.0]
[1680309821966,10.0,21.156,21.143,10.0]
[1680309822984,18.929087,21.157,21.145,10.0]
[1680309823274,18.929087,21.157,21.146,17.0]
[1680309823580,18.929087,21.157,21.147,10.0]
[1680309823767,18.929087,21.157,21.148,17.0]
[1680309823959,18.929087,21.157,21.149,10.0]
[1680309824164,18.929087,21.157,21.15,17.0]
[1680309824377,18.929087,21.157,21.151,10.0]
[1680309824681,18.929087,21.157,21.153,10.0]
[1680309825274,20.0,21.161,21.153,10.0]
[1680309825473,20.0,21.164,21.153,10.0]
[1680309825869,10.0,21.163,21.153,10.0]
[1680309826186,10.0,21.161,21.153,10.0]
[1680309826883,10.0,21.163,21.153,10.0]
[1680309827185,20.0,21.162,21.153,10.0]
[1680309828776,20.0,21.164,21.153,10.0]
[1680309829178,20.0,21.164,21.154,17.0]
[1680309829580,6.071228,21.17,21.154,17.0]
[1680309829789,10.0,21.173,21.155,10.0]
[1680309830106,10.0,21.173,21.156,17.0]
[1680309830579,10.0,21.173,21.157,10.0]
[1680309830784,10.0,21.173,21.159,10.0]
[1680309830982,10.0,21.173,21.16,17.0]
[1680309831180,110.5767,21.174,21.161,10.0]
[1680309831385,110.5767,21.174,21.162,17.0]
[1680309831583,110.5767,21.174,21.163,10.0]
[1680309834592,10.0,21.18,21.163,10.0]
[1680309834783,126.5594,21.18,21.164,17.0]
[1680309834980,126.5594,21.18,21.164,129.2587]
[1680309835288,18.916408,21.172,21.164,129.2587]
[1680309835785,18.916408,21.172,21.165,10.0]
[1680309835978,18.916408,21.172,21.167,10.0]
[1680309836178,18.916408,21.172,21.165,10.0]
[1680309836384,18.916408,21.172,21.163,10.0]
[1680309836786,18.916408,21.172,21.164,17.0]
[1680309843285,18.916408,21.172,21.165,10.0]
[1680309843500,18.916408,21.172,21.166,17.0]
[1680309843696,18.916408,21.172,21.167,10.0]
[1680309844007,10.0,21.179,21.167,10.0]
[1680309845898,116.5594,21.18,21.167,10.0]
[1680309846091,20.0,21.179,21.168,17.0]
[1680309846705,20.0,21.179,21.169,10.0]
[1680309846998,20.0,21.179,21.17,17.0]
[1680309847206,20.0,21.179,21.171,10.0]
[1680309857110,20.0,21.179,21.172,17.0]
[1680309861117,80.7566,21.186,21.172,17.0]
[1680309861423,80.7566,21.186,21.173,10.0]
[1680309861723,80.7566,21.186,21.175,10.0]
[1680309862120,80.7566,21.186,21.176,17.0]
[1680309862307,80.7566,21.186,21.175,10.0]
[1680309862509,10.0,21.185,21.175,10.0]
[1680309865122,10.0,21.185,21.173,10.0]
[1680309865416,10.0,21.185,21.174,17.0]
[1680309873420,10.0,21.185,21.175,10.0]
[1680309874129,10.0,21.185,21.173,10.0]
[1680309874625,10.0,21.185,21.161,4.5400912]
[1680309874928,37.0,21.184,21.16,38.59049545]
[1680309875110,44.07101808,21.184,21.16,38.59049545]
[1680309875314,17.07101808,21.183,21.161,10.0]
[1680309875625,20.0,21.182,21.161,10.0]
[1680309875823,44.07101808,21.182,21.161,10.0]
[1680309876028,17.07101808,21.181,21.161,10.0]
[1680309876218,10.0,21.179,21.161,10.0]
[1680309876613,10.0,21.177,21.161,10.0]
[1680309876810,17.0,21.176,21.161,10.0]
[1680309877017,10.0,21.175,21.161,10.0]
[1680309877426,17.0,21.174,21.161,10.0]
[1680309877810,10.0,21.173,21.161,10.0]
[1680309878224,10.0,21.173,21.16,14.43521353]
[1680309878423,10.0,21.173,21.157,10.0]
[1680309878718,10.0,21.173,21.158,20.0]
[1680309879018,10.0,21.173,21.159,10.0]
[1680309881119,10.0,21.173,21.155,10.0]
[1680309881325,37.0,21.172,21.155,10.0]
[1680309881835,10.0,21.171,21.155,10.0]
[1680309882033,37.0,21.17,21.155,10.0]
[1680309882235,10.0,21.169,21.155,10.0]
[1680309884214,10.0,21.169,21.153,119.8033]
[1680309884426,10.0,21.167,21.154,10.0]
[1680309886436,10.0,21.167,21.154,10.0]
[1680309888935,10.0,21.169,21.154,10.0]
[1680309889147,20.0,21.17,21.156,10.0]
[1680309889330,228.9103,21.175,21.157,17.0]
[1680309889524,228.9103,21.175,21.157,37.0]
[1680309889831,228.9103,21.175,21.158,10.0]
[1680309890131,228.9103,21.175,21.16,10.0]
[1680309890331,228.9103,21.175,21.161,17.0]
[1680309890526,10.0,21.174,21.162,10.0]
[1680309890732,10.0,21.174,21.163,17.0]
[1680309891040,10.0,21.174,21.162,10.0]
[1680309892937,10.0,21.174,21.162,9.5]
[1680309894140,10.0,21.174,21.158,10.0]
[1680309894329,10.0,21.174,21.16,10.0]
[1680309904046,226.4103,21.175,21.16,10.0]
[1680309904255,10.0,21.173,21.16,10.0]
[1680309904646,226.4103,21.175,21.161,17.0]
[1680309905048,10.0,21.181,21.164,18.899]
[1680309905246,10.0,21.181,21.165,17.0]
[1680309905447,10.0,21.181,21.166,20.0]
[1680309905653,10.0,21.181,21.168,10.0]
[1680309905856,10.0,21.181,21.169,37.0]
[1680309906052,10.0,21.181,21.17,10.0]
[1680309908363,10.0,21.183,21.171,17.0]
[1680309908550,10.0,21.183,21.172,10.0]
[1680309909269,10.0,21.183,21.173,17.0]
[1680309909563,119.5925,21.186,21.174,10.0]
[1680309913068,119.5925,21.186,21.175,17.0]
[1680309913454,119.5925,21.186,21.176,10.0]
[1680309915570,119.5925,21.186,21.172,10.0]
[1680309915754,119.5925,21.186,21.17,10.0]
[1680309915755,10.0,21.183,21.161,18.898366]
[1680309915949,20.0,21.182,21.161,18.898366]
[1680309916150,17.0,21.181,21.161,18.898366]
[1680309916381,20.0,21.18,21.161,18.898366]
[1680309916553,17.0,21.179,21.161,18.898366]
[1680309917046,17.07101808,21.178,21.161,18.898366]
[1680309917349,17.0,21.177,21.161,18.898366]
[1680309917554,10.0,21.176,21.161,18.898366]
[1680309917754,10.0,21.174,21.161,18.898366]
[1680309917948,17.0,21.173,21.161,18.898366]
[1680309918150,10.0,21.172,21.161,18.898366]
[1680309922964,10.0,21.172,21.156,10.0]
[1680309923172,10.0,21.172,21.157,37.0]
[1680309923671,10.0,21.172,21.158,10.0]
[1680309923967,10.0,21.172,21.159,37.0]
[1680309924167,10.0,21.172,21.16,10.0]
[1680309924469,10.0,21.172,21.162,10.0]
[1680309924654,10.0,21.174,21.162,10.0]
[1680309924851,115.0965,21.175,21.162,10.0]
[1680309925357,10.0,21.174,21.162,10.0]
[1680309930199,10.0,21.174,21.159,20.0]
[1680309930362,17.0,21.173,21.159,20.0]
[1680309930676,10.0,21.172,21.159,20.0]
[1680309931374,10.0,21.172,21.16,10.0]
[1680309934965,10.0,21.172,21.159,20.0]
[1680309935569,10.0,21.172,21.16,10.0]
[1680309937273,10.0,21.172,21.159,20.0]
[1680309938279,10.0,21.172,21.151,18.906838]
[1680309938280,17.0,21.171,21.151,18.906838]
[1680309938463,20.0,21.17,21.151,18.906838]
[1680309938664,27.0,21.169,21.151,18.906838]
[1680309938980,34.07101808,21.169,21.151,18.906838]
[1680309939170,7.07101808,21.168,21.151,18.906838]
[1680309939376,17.0,21.167,21.151,18.906838]
[1680309939677,10.0,21.166,21.151,18.906838]
[1680309940267,10.0,21.166,21.152,10.0]
[1680309940658,10.0,21.166,21.153,17.0]
[1680309941062,10.0,21.166,21.154,10.0]
[1680309946980,10.0,21.166,21.153,113.6866]
[1680309947474,10.0,21.164,21.153,113.6866]
[1680309947699,10.0,21.164,21.146,77.34985763]
[1680309947864,10.0,21.162,21.149,10.0]
[1680309948869,20.0,21.161,21.149,10.0]
[1680309949185,10.0,21.16,21.146,10.0]
[1680309949385,20.0,21.159,21.146,10.0]
[1680309949562,10.0,21.158,21.146,10.0]
[1680309955884,20.0,21.159,21.146,10.0]
[1680309956688,20.0,21.159,21.148,17.0]
[1680309956981,20.0,21.16,21.148,17.0]
[1680309957183,20.0,21.16,21.149,10.0]
[1680309957406,20.0,21.165,21.151,10.0]
[1680309957695,20.0,21.165,21.152,17.0]
[1680309957986,20.0,21.165,21.153,10.0]
[1680309957987,10.0,21.164,21.153,10.0]
[1680309958487,20.0,21.163,21.153,10.0]
[1680309959385,10.0,21.162,21.151,10.0]
[1680309959594,20.0,21.161,21.149,10.0]
[1680309959970,10.0,21.16,21.146,10.0]
[1680309960171,37.0,21.159,21.146,10.0]
[1680309960473,10.0,21.158,21.146,10.0]
[1680309963374,20.0,21.159,21.146,10.0]
[1680309966678,10.0,21.16,21.149,10.0]
[1680309966878,20.0,21.159,21.149,10.0]
[1680309970199,10.0,21.157,21.146,10.0]
[1680309970780,10.0,21.157,21.146,9.5]
[1680309972792,20.0,21.159,21.147,17.0]
[1680309972990,20.0,21.161,21.147,17.0]
[1680309973194,20.0,21.161,21.148,10.0]
[1680309978090,10.0,21.162,21.15,10.0]
[1680309978292,20.0,21.161,21.15,10.0]
[1680309980385,10.0,21.16,21.15,10.0]
[1680309980591,10.0,21.158,21.15,10.0]
[1680309982388,10.0,21.16,21.15,10.0]
[1680309982588,20.0,21.159,21.15,10.0]
[1680309985509,20.0,21.161,21.15,10.0]
[1680309995718,20.0,21.161,21.148,10.0]
[1680309996012,10.0,21.158,21.143,10.0]
[1680309996222,17.0,21.157,21.143,10.0]
[1680309996719,10.0,21.156,21.143,10.0]
[1680310002520,10.0,21.156,21.142,14.18626873]
[1680310002728,17.0,21.155,21.139,10.0]
[1680310002908,30.0,21.154,21.134,75.16338737]
[1680310003106,37.07101808,21.154,21.135,17.0]
[1680310003308,24.07101808,21.153,21.135,17.0]
[1680310003518,20.0,21.152,21.135,17.0]
[1680310003827,10.0,21.151,21.136,10.0]
[1680310004008,20.0,21.15,21.137,17.0]
[1680310004509,10.0,21.149,21.138,10.0]
[1680310008114,10.0,21.149,21.136,10.0]
[1680310015822,10.0,21.149,21.135,10.0]
[1680310016132,17.0,21.148,21.135,10.0]
[1680310016338,10.0,21.147,21.135,10.0]
[1680310017036,10.0,21.147,21.134,10.0]
[1680310017238,10.0,21.145,21.134,10.0]
[1680310020840,10.0,21.149,21.134,10.0]
[1680310023346,10.0,21.149,21.135,17.0]
[1680310023731,10.0,21.149,21.136,10.0]
[1680310023930,10.0,21.147,21.136,10.0]
[1680310024125,17.0,21.146,21.134,10.0]
[1680310024545,10.0,21.145,21.134,10.0]
[1680310030946,10.0,21.145,21.134,8.5]
[1680310031654,17.07101808,21.149,21.134,8.5]
[1680310031952,7.07101808,21.149,21.135,17.0]
[1680310032152,7.07101808,21.149,21.136,10.0]
[1680310032550,10.0,21.148,21.136,10.0]
[1680310032941,17.0,21.147,21.136,10.0]
[1680310033239,10.0,21.146,21.136,10.0]
[1680310035159,10.0,21.146,21.132,10.0]
[1680310035360,17.0,21.145,21.132,10.0]
[1680310038449,20.0,21.144,21.121,13.98379847]
[1680310038635,20.0,21.144,21.124,10.0]
[1680310038836,24.07101808,21.143,21.124,10.0]
[1680310039251,135.07681808,21.142,21.124,10.0]
[1680310039449,10.0,21.14,21.124,10.0]
[1680310039649,20.0,21.139,21.124,10.0]
[1680310039844,17.0,21.138,21.124,10.0]
[1680310040260,24.07101808,21.138,21.124,10.0]
[1680310040444,10.0,21.137,21.124,10.0]
[1680310040650,17.0,21.136,21.124,10.0]
[1680310040846,10.0,21.135,21.124,10.0]
[1680310042253,17.0,21.134,21.124,10.0]
[1680310042844,17.0,21.134,21.122,10.0]
[1680310043354,10.0,21.135,21.122,10.0]
[1680310043659,17.0,21.134,21.122,10.0]
[1680310045853,7.07101808,21.138,21.122,10.0]
[1680310046059,33.7085097,21.145,21.123,17.0]
[1680310046243,20.0,21.141,21.123,17.0]
[1680310046443,10.0,21.14,21.124,10.0]
[1680310046646,20.0,21.139,21.124,10.0]
[1680310048364,10.0,21.138,21.124,10.0]
[1680310050858,10.0,21.138,21.125,17.0]
[1680310051050,20.0,21.139,21.125,17.0]
[1680310051250,20.0,21.139,21.126,10.0]
[1680310052255,10.0,21.138,21.126,10.0]
[1680310053049,20.0,21.139,21.126,10.0]
[1680310053544,20.0,21.141,21.128,10.0]
[1680310053744,20.0,21.144,21.129,17.0]
[1680310054265,20.0,21.144,21.13,10.0]
[1680310054566,20.0,21.144,21.131,17.0]
[1680310054863,20.0,21.144,21.132,10.0]
[1680310055067,20.0,21.144,21.128,10.0]
[1680310055365,10.0,21.142,21.126,10.0]
[1680310055561,37.0,21.141,21.126,10.0]
[1680310056067,10.0,21.14,21.126,10.0]
[1680310056265,10.0,21.138,21.122,10.0]
[1680310056768,17.0,21.137,21.122,10.0]
[1680310056948,10.0,21.136,21.122,10.0]
[1680310057154,17.0,21.135,21.122,10.0]
[1680310057453,10.0,21.134,21.122,10.0]
[1680310057853,17.0,21.133,21.12,112.1315]
[1680310058066,10.0,21.132,21.12,112.1315]
[1680310059867,10.0,21.132,21.121,10.0]
[1680310063583,10.0,21.134,21.121,10.0]
[1680310063968,10.0,21.139,21.121,10.0]
[1680310064173,10.0,21.139,21.123,10.0]
[1680310064374,20.0,21.141,21.124,17.0]
[1680310064879,10.0,21.138,21.125,10.0]
[1680310067593,20.0,21.139,21.125,10.0]
[1680310069079,10.0,21.138,21.125,10.0]
[1680310072483,20.0,21.139,21.125,10.0]
[1680310072684,20.0,21.139,21.126,17.0]
[1680310072891,20.0,21.139,21.127,10.0]
[1680310073189,20.0,21.139,21.128,17.0]
[1680310074074,30.0,21.139,21.128,17.0]
[1680310075989,20.0,21.139,21.129,10.0]
[1680310082482,20.0,21.139,21.13,17.0]
[1680310082802,10.0,21.14,21.131,10.0]
[1680310082979,20.0,21.139,21.131,10.0]
[1680310084081,20.0,21.141,21.132,17.0]
[1680310085599,20.0,21.141,21.133,10.0]
[1680310088690,30.0,21.144,21.133,10.0]
[1680310091781,20.0,21.144,21.133,10.0]
[1680310092100,20.0,21.144,21.134,17.0]
[1680310092287,20.0,21.146,21.134,17.0]
[1680310092791,20.0,21.146,21.135,10.0]
[1680310093302,20.0,21.146,21.136,17.0]
[1680310093487,20.0,21.146,21.137,10.0]
[1680310095284,114.938,21.147,21.138,17.0]
[1680310095483,18.935435,21.151,21.138,17.0]
[1680310095794,18.935435,21.151,21.139,10.0]
[1680310097809,20.0,21.15,21.139,10.0]
[1680310097998,20.0,21.15,21.14,17.0]
[1680310098791,20.0,21.15,21.141,10.0]
[1680310098980,20.0,21.15,21.142,17.0]
[1680310099179,20.0,21.15,21.143,10.0]
[1680310099401,20.0,21.15,21.144,17.0]
[1680310100785,18.935435,21.151,21.145,10.0]
[1680310101099,18.935435,21.151,21.146,17.0]
[1680310101284,18.935435,21.151,21.145,10.0]
[1680310101485,18.935435,21.151,21.146,17.0]
[1680310103908,10.0,21.162,21.146,17.0]
[1680310104111,20.0,21.161,21.146,17.0]
[1680310104913,10.0,21.16,21.147,10.0]
[1680310105095,20.0,21.159,21.148,17.0]
[1680310105908,10.0,21.158,21.148,17.0]
[1680310108005,20.0,21.159,21.149,10.0]
[1680310115314,20.0,21.159,21.15,17.0]
[1680310115499,10.0,21.16,21.15,17.0]
[1680310116012,10.0,21.158,21.15,17.0]
[1680310120331,8.5,21.158,21.15,17.0]
[1680310120519,20.0,21.159,21.15,17.0]
[1680310121410,20.0,21.159,21.142,112.8797]
[1680310121619,27.0,21.158,21.142,112.8797]
[1680310123398,10.0,21.158,21.142,112.8797]
[1680310123603,10.0,21.158,21.143,27.0]
[1680310124010,10.0,21.158,21.143,10.0]
[1680310124207,10.0,21.156,21.142,112.8797]
[1680310124403,20.0,21.155,21.135,10.0]
[1680310124609,37.0,21.155,21.135,10.0]
[1680310125125,10.0,21.154,21.135,10.0]
[1680310125427,10.0,21.152,21.135,10.0]
[1680310125722,10.0,21.15,21.135,10.0]
[1680310125908,20.0,21.149,21.136,17.0]
[1680310126330,10.0,21.148,21.136,17.0]
[1680310126506,10.0,21.148,21.137,10.0]
[1680310126706,10.0,21.148,21.139,10.0]
[1680310130917,20.0,21.149,21.139,10.0]
[1680310131117,10.0,21.15,21.139,10.0]
[1680310131315,20.0,21.149,21.139,10.0]
[1680310135832,20.0,21.149,21.134,10.0]
[1680310136034,10.0,21.148,21.135,17.0]
[1680310136533,10.0,21.148,21.127,13.91338991]
[1680310136734,10.0,21.146,21.132,10.0]
[1680310137243,10.0,21.144,21.132,10.0]
[1680310145338,20.0,21.149,21.133,17.0]
[1680310145840,20.0,21.149,21.134,10.0]
[1680310146040,20.0,21.149,21.135,17.0]
[1680310146228,20.0,21.149,21.136,10.0]
[1680310147229,10.0,21.148,21.136,10.0]
[1680310153235,10.0,21.148,21.134,10.0]
[1680310153437,17.0,21.147,21.132,10.0]
[1680310153843,10.0,21.146,21.132,10.0]
[1680310165563,10.0,21.146,21.131,115.4897]
[1680310165748,17.0,21.145,21.131,115.4897]
[1680310165948,10.0,21.144,21.132,10.0]
[1680310172554,20.0,21.143,21.132,10.0]
[1680310175451,20.0,21.146,21.133,17.0]
[1680310175647,20.0,21.146,21.134,10.0]
[1680310175871,20.0,21.146,21.136,10.0]
[1680310182049,10.0,21.145,21.136,10.0]
[1680310182254,20.0,21.144,21.136,10.0]
[1680310188752,20.0,21.144,21.134,10.0]
[1680310188959,20.0,21.144,21.135,17.0]
[1680310197480,10.0,21.144,21.135,17.0]
[1680310197782,20.0,21.143,21.135,17.0]
[1680310200590,20.0,21.145,21.135,17.0]
[1680310202282,115.5633,21.147,21.135,17.0]
[1680310202581,115.6968,21.153,21.136,10.0]
[1680310202780,20.0,21.151,21.137,17.0]
[1680310203171,10.0,21.15,21.138,10.0]
[1680310203385,20.0,21.149,21.139,17.0]
[1680310203591,20.0,21.149,21.14,10.0]
[1680310203889,20.0,21.151,21.142,10.0]
[1680310204085,19.0,21.151,21.142,10.0]
[1680310204274,19.0,21.151,21.143,17.0]
[1680310205484,19.0,21.151,21.14,10.0]
[1680310205685,10.0,21.15,21.14,10.0]
[1680310206286,20.0,21.149,21.141,17.0]
[1680310207485,20.0,21.151,21.141,17.0]
[1680310212095,10.0,21.151,21.141,17.0]
[1680310212283,20.0,21.15,21.141,17.0]
[1680310214593,20.0,21.15,21.142,10.0]
[1680310214897,20.0,21.151,21.144,10.0]
[1680310215283,10.0,21.158,21.145,17.0]
[1680310215481,10.0,21.162,21.145,17.0]
[1680310215998,10.0,21.162,21.146,10.0]
[1680310216180,10.0,21.162,21.147,17.0]
[1680310216376,10.0,21.162,21.148,10.0]
[1680310216580,10.0,21.162,21.149,17.0]
[1680310216781,20.0,21.161,21.149,17.0]
[1680310217401,20.0,21.161,21.15,10.0]
[1680310217697,20.0,21.161,21.151,17.0]